Cogmind - Beta 16.1 @@@ ROGUE MODE // 2026.03.10 @ 16:20:45 Player: Kaisercar Result: Escaped! Performance ------------- Evolutions (9) 4500 Regions Visited (28) 5600 Robots Destroyed (335) 1675 Value Destroyed (12309) 12309 Prototype IDs (71) 1420 Alien Tech Used (0) 0 Bonus (11127) 11127 TOTAL SCORE: 36631 Bonus ------- High Alert Combat Kills 972 Follower Combat Kills 3068 Entered Garrisons 400 Aligned with FarCom 300 Met Data Miner 300 Acquired ECA 300 Met Warlord at Base 500 MAIN.C Attacked Warlord 500 Warlord Defense Kills 1072 Built Enhanced Grunts 300 A7 Reached Mainframe 300 Met R17 at Cetus 500 Win 3000 Friendly Fire -385 Cogmind --------- Core Integrity 1390/1600 Matter 200/300 Energy 184/190 System Corruption 5% Temperature Cool (15) Movement Flying (25) Location To Epsilon Eridani Parts ------- > --- POWER (2) -------- Light Quantum Reactor > --- PROPULSION (8) --- Improved Diametric Drive Improved Diametric Drive Cooled Impulse Thruster (fused) Impulse Thruster Array Impulse Thruster Array > --- UTILITY (10) ----- Advanced Heat Sink Medium Storage Unit Experimental Core Analyzer Experimental Armor Integrity Analyzer Improved Cloaking Device Improved Propulsion Shielding Graphene Brace Advanced Focal Shield Experimental Hacking Suite Improved System Shield > --- WEAPON (5) ------- Hellfire Missile Launcher Nanosword > --- INVENTORY (10) --- Advanced Point Defense System Enhanced Nova Cannon Heavy Machine Gun Railgun Hypervelocity Railgun Helical Railgun Long-range Missile Launcher Peak State ------------ > --- POWER ------------ Light Particle Reactor Light Quantum Reactor > --- PROPULSION ------- Q-thruster Improved Diametric Drive Improved Diametric Drive Cooled Impulse Thruster Impulse Thruster Array Impulse Thruster Array > --- UTILITY ---------- Advanced Heat Sink Medium Storage Unit Experimental Targeting Computer Experimental Core Analyzer Experimental Armor Integrity Analyzer Advanced Phase Shifter Centrium Light Armor Plating Advanced Hacking Suite Experimental Hacking Suite Experimental System Shield > --- WEAPON ----------- Enhanced Nova Cannon Heavy Machine Gun KE Penetrator Helical Railgun Nanosword > --- INVENTORY -------- Cooled Impulse Thruster Graphene Brace Advanced Focal Shield Advanced Point Defense System Railgun Hypervelocity Railgun Long-range Missile Launcher Hellfire Missile Launcher Field Lobotomy Kit [Rating: 201] Favorites ----------- Power Light Particle Reactor Engine Ion Engine Power Core Enhanced Nuclear Core Reactor Light Particle Reactor Propulsion Wheel Treads Light Treads Leg Aluminum Leg Wheel Wheel Hover Unit Improved Airjet Flight Unit Field Propulsion Drive Utility Advanced Transmission Jammer Device Advanced Transmission Jammer Storage Small Storage Unit Processor Experimental Armor Integrity Analyzer Hackware Improved System Shield Protection Core Shielding Weapon Flak Gun Energy Gun EM Shotgun Energy Cannon Beam Cannon Ballistic Gun Flak Gun Ballistic Cannon Light Cannon Launcher Missile Launcher Special Weapon Advanced Remote Datajack Impact Weapon Powered Hammer Slashing Weapon Nanosword Build | -11 -10 -10 -10 -9 -8 -8 -8 -7 -7 -7 -7 -7 -7 -6 -6 -6 -6 -6 -6 -5 -5 -5 -5 -4 -4 -3 -2 -1 ------- Run | Yrd Mat Min Exi Min Mat Gar Mat Fac Gar Fac Low Low Dat Pro Fac Was Fac Ext Cet Fac Upp Upp War Pro Fac Res Res Acc Slots Evolved 18 | . . . . . 4 . . 2 . . . . . . 2 . . . . 2 . . . . 2 2 2 2 Power 1 | . . . . . . . . . . . . . . . . . . . . . . . . . 1 . . . Propulsion 6 | . . . . . 1 . . 1 . . . . . . 1 . . . . 1 . . . . . 1 1 . Utility 8 | . . . . . 2 . . . . . . . . . 1 . . . . 1 . . . . 1 . 1 2 Weapon 3 | . . . . . 1 . . 1 . . . . . . . . . . . . . . . . . 1 . . Parts Attached 331 | 7 14 8 1 2 19 18 20 13 3 31 4 1 . 3 12 1 29 11 10 39 8 2 19 1 5 18 15 17 Power 30 | 1 1 1 . . 2 2 . 1 1 2 . . . . 1 . 4 3 2 2 . . . . 1 3 1 2 Engine 11 | 1 1 1 . . . 2 . . . . . . . . . . 1 2 1 . . . . . 1 1 . . Core 12 | . . . . . 2 . . 1 1 2 . . . . 1 . 2 1 . 2 . . . . . . . . Reactor 7 | . . . . . . . . . . . . . . . . . 1 . 1 . . . . . . 2 1 2 Propulsion 88 | 2 4 2 . . 3 5 10 5 . 9 1 1 . 1 6 . 3 1 1 19 3 . 3 . 1 7 1 . Treads 15 | 2 2 . . . 1 2 6 . . . . . . 1 1 . . . . . . . . . . . . . Leg 2 | . . . . . . . . . . . 1 . . . . . . . 1 . . . . . . . . . Wheel 13 | . 2 2 . . 2 . 4 . . . . . . . 2 . . . . 1 . . . . . . . . Hover 20 | . . . . . . 3 . . . 8 . 1 . . . . . . . 8 . . . . . . . . Flight 38 | . . . . . . . . 5 . 1 . . . . 3 . 3 1 . 10 3 . 3 . 1 7 1 . Utility 107 | 2 2 . 1 2 9 3 5 2 1 9 3 . . . 2 1 9 3 3 13 2 1 10 . 3 3 8 10 Device 40 | 1 . . . 1 1 1 . 1 . 3 2 . . . 1 . 5 1 1 6 . 1 4 . . 2 2 7 Storage 7 | 1 2 . . . . . 2 . . 1 . . . . . . . . . . . . . . 1 . . . Processor 17 | . . . . . 1 . 1 . . 2 . . . . . 1 2 1 . 2 . . 4 . 2 . 1 . Hackware 17 | . . . . . . 1 1 1 . . . . . . 1 . 2 1 . 4 1 . . . . 1 2 2 Protection 26 | . . . 1 1 7 1 1 . 1 3 1 . . . . . . . 2 1 1 . 2 . . . 3 1 Artifact . | . . . . . . . . . . . . . . . . . . . . . . . . . . . . . Weapon 106 | 2 7 5 . . 5 8 5 5 1 11 . . . 2 3 . 13 4 4 5 3 1 6 1 . 5 5 5 Energy Gun 12 | 2 4 1 . . 2 . . . . . . . . . . . . . 1 . . . 2 . . . . . Energy Cannon 7 | . . 1 . . . . . . . 1 . . . . . . 1 . . 2 . . . . . 1 . 1 Ballistic Gun 57 | . 1 . . . 2 2 2 4 . 9 . . . 1 2 . 9 2 3 2 2 1 4 1 . 4 3 3 Ballistic Cannon 8 | . 2 . . . . 5 1 . . . . . . . . . . . . . . . . . . . . . Launcher 11 | . . 2 . . 1 . 2 . . 1 . . . 1 . . 2 . . 1 . . . . . . 1 . Special Weapon 3 | . . 1 . . . . . . 1 . . . . . . . . . . . . . . . . . . 1 Impact Weapon 3 | . . . . . . . . 1 . . . . . . 1 . 1 . . . . . . . . . . . Slashing Weapon 5 | . . . . . . 1 . . . . . . . . . . . 2 . . 1 . . . . . 1 . Piercing Weapon . | . . . . . . . . . . . . . . . . . . . . . . . . . . . . . Special Melee Weapon . | . . . . . . . . . . . . . . . . . . . . . . . . . . . . . Unidentified Prototypes 33 | . . . . . 1 1 1 . . 6 . . . 1 . . 3 . 4 . . . 7 . . 4 5 . Corrupted Parts 6 | . . . . . . . 1 . . . . . . . . . . 1 4 . . . . . . . . . System Corruption 26 | . . . . . . . 2 . . . . . . . . . . 2 22 . . . . . . . . . Parts Lost 72 | . 3 1 . . 1 5 3 . 3 5 4 1 . . 6 2 4 2 5 1 6 . 3 2 . 2 . 13 Power 8 | . 1 . . . . . . . . . . . . . 1 1 1 1 . . . . . . . . . 3 Propulsion 28 | . . 1 . . . 4 2 . . 1 3 . . . 4 . 1 . 3 . 3 . 2 1 . 1 . 2 Utility 22 | . . . . . . . . . 1 3 1 1 . . . . 2 1 . 1 3 . 1 1 . 1 . 6 Weapon 14 | . 2 . . . 1 1 1 . 2 1 . . . . 1 1 . . 2 . . . . . . . . 2 Highest Loss Streak 4 | . 1 1 . . 1 3 2 . 3 3 2 1 . . 3 2 2 2 4 1 2 . 1 1 . 1 . 4 To Critical Strikes . | . . . . . . . . . . . . . . . . . . . . . . . . . . . . . Average Backups 10 | 2 13 24 24 24 24 22 11 5 4 6 7 7 8 7 7 4 4 4 4 4 4 4 4 5 7 9 9 9 Power . | . 1 1 3 4 4 1 . . . . . . 1 1 . . . . . . . . . . . 1 . . Propulsion 1 | 1 3 3 4 4 4 4 6 1 . . . . . . . . . . . . . . . . . 1 1 . Utility 2 | . 5 9 8 7 5 6 1 1 3 2 2 3 3 1 1 1 . . . . . . . . 1 2 3 2 Weapon 4 | . 3 9 7 7 8 7 2 1 . 2 3 3 3 3 3 2 3 3 3 2 2 3 3 2 3 2 4 5 Tool/Special . | . . . . . . . . . . . . . . . . . . . . . . . . . . . . . Unused Backups 59 | . 3 1 5 4 8 7 5 1 . 4 . . . 1 3 . 1 . . . . . . 2 1 6 5 2 Power 8 | . . . . . 4 2 . . . . . . . . 1 . . . . . . . . . . 1 . . Propulsion 10 | . . . . . 3 . 4 . . . . . . . . . 1 . . . . . . 1 . . 1 . Utility 28 | . 3 . 3 3 . 2 1 . . 2 . . . . 2 . . . . . . . . 1 1 5 3 2 Weapon 13 | . . 1 2 1 1 3 . 1 . 2 . . . 1 . . . . . . . . . . . . 1 . Tool/Special . | . . . . . . . . . . . . . . . . . . . . . . . . . . . . . Average Slot Usage (%) 92 | . 98 97 100 100 99 98 98 90 94 98 80 78 53 95 88 67 80 84 80 89 95 96 99 99 81 85 90 83 Engine 3 | . 13 14 14 14 . 6 9 2 . . . . . . . . . 1 5 3 . . . . 1 1 . . Core 3 | . . . . . 8 2 . 4 7 6 7 7 7 7 5 6 3 3 . 1 5 5 5 5 5 . . . Reactor 1 | . . . . . . . . . . . . . . . . . 1 . . . . . . . . 3 7 7 Treads 3 | . 14 . . . 2 14 10 . . . . . . 5 7 . . . . . . . . . . . . . Wheel 5 | . 13 26 28 28 24 8 12 . . . . . . . 5 . . . . 2 . . . . . . . . Hover 5 | . . . . . . 3 3 . . 27 19 13 15 15 9 . . . . 3 . . . . . . . . Flight 12 | . . . . . . . . 28 30 2 . . . . 1 20 27 29 20 22 35 35 34 34 26 24 26 23 Device 11 | . 14 14 . . . 10 6 6 2 8 10 15 7 11 19 20 19 18 13 16 16 14 16 10 9 7 4 12 Storage 5 | . 14 14 14 14 9 7 8 . . 4 7 7 7 7 5 . . . . . . . . . 3 4 4 4 Processor 5 | . . . . . 1 9 11 7 7 9 6 . . . . 1 4 . 4 3 5 5 5 17 19 15 13 10 Hackware 2 | . . . . . . 1 . 10 15 2 . . . . . 6 6 6 12 6 . . . . . 3 7 9 Protection 4 | . . . 13 13 24 7 8 . 3 3 . . . 7 5 . . . . 2 8 11 10 5 1 1 3 2 Energy Gun 3 | . 19 7 14 14 8 8 . . . . . . . . . . . . 1 . . . . . . . . . Ballistic Gun 14 | . 1 6 . . 6 5 9 17 13 21 19 23 5 25 17 6 11 20 18 22 17 17 20 16 7 15 16 8 Ballistic Cannon 2 | . 6 7 14 14 11 7 9 . . . . . . . . . . . . . . . . . . . . . Impact Weapon 1 | . . . . . . . . 1 6 6 3 3 2 4 6 6 2 . . . . . . . . . . . Slashing Weapon 1 | . . . . . . 5 7 4 . . . . . . . . . . . . 2 2 2 5 4 3 3 3 Peak Build Rating 201 | 7 11 12 13 17 35 41 39 44 44 57 50 38 37 53 56 52 64 69 86 109 107 93 119 121 125 163 184 201 Average Rating 66 | 4 8 10 12 13 23 37 33 38 41 51 39 35 25 47 49 44 52 58 65 85 92 90 108 117 112 145 180 183 On Entrance 58 | . 7 11 11 13 14 35 39 35 44 40 52 31 37 37 51 45 33 56 69 86 104 87 89 119 99 110 160 184 Avg Prop Armor Cover (%) 5 | . . . . . 7 16 10 . . 2 5 5 10 8 9 . 13 . 2 1 1 1 1 2 . . . 4 Naked Turns . | . . . . . . . . . . . . . . . . . . . . . . . . . . . . . Heaviest Build 118 | 15 92 92 92 94 118 118 52 22 22 37 30 29 28 34 35 16 26 26 47 47 47 51 48 42 44 55 69 66 Greatest Support 66 | 40 40 26 20 20 32 27 40 22 22 36 33 17 17 30 50 18 28 26 28 55 54 53 58 54 44 55 66 66 Greatest Overweight (x) 20 | . 3 5 4 4 5 9 5 . 7 1 2 2 1 1 4 . 8 6 2 6 . . 2 . . 1 1 20 Average Overweight (x) . | . 1 3 4 4 3 4 1 . . . . 1 . 1 . . . . . . . . . . . . . . Largest Inventory Capacity 25 | 8 25 25 25 25 25 25 15 15 5 8 8 8 8 8 8 5 5 5 5 5 5 5 5 5 10 10 10 10 Average Capacity 11 | 7 18 25 25 25 25 22 12 5 5 7 8 8 8 8 7 5 5 5 5 5 5 5 5 5 8 10 10 10 Most Carried 25 | 4 25 25 25 25 25 25 15 12 5 8 8 8 8 8 8 4 5 5 5 5 5 5 5 5 10 10 10 10 Average Carried 10 | 2 13 24 24 24 24 22 11 5 4 6 7 7 8 7 7 4 4 4 4 4 4 4 4 4 7 9 9 9 Final Capacity 25 | 8 25 25 25 25 25 5 15 5 5 8 8 8 8 8 5 5 5 5 5 5 5 5 5 5 10 10 10 10 Final Carried 25 | 4 23 25 25 25 25 4 13 5 5 8 8 8 8 8 4 4 5 5 5 5 4 5 5 5 9 10 10 7 Class Distribution -------------------- 25% | Mutant 16% | Scavenger-Sprinter 10% | Skirmisher 6% | Scavenger-Skirmisher 6% | Hacker-Sprinter 6% | Tank 5% | Gunner 3% | Scavenger-Mutant 3% | Sprinter 3% | Scavenger-Tank Dominant Class ---------------- Mutant | -10/Materials Scavenger-Mutant | -10/Mines Mutant | -10/Exiles Mutant | -9/Mines Tank | -8/Materials Mutant | -8/Garrison Mutant | -8/Materials Hacker-Sprinter | -7/Factory Hacker-Sprinter | -7/Garrison Skirmisher | -7/Factory Mutant | -7/Lower Caves Gunner | -7/Lower Caves Mutant | -7/Data Miner Tank | -6/Proximity Caves Scavenger-Skirmisher | -6/Factory Scavenger-Skirmisher | -6/Waste Scout | -6/Factory Commander-Sprinter | -6/Extension Commander-Skirmisher | -6/Cetus Scavenger-Skirmisher | -5/Factory Scavenger-Sprinter | -5/Upper Caves Scavenger-Sprinter | -5/Upper Caves Derelict-Sprinter | -5/Warlord Scavenger-Gunner | -4/Proximity Caves Scavenger-Sprinter | -4/Factory Scavenger-Sprinter | -3/Research Scavenger-Sprinter | -2/Research Hacker-Sprinter | -1/Access Resources | -11 -10 -10 -10 -9 -8 -8 -8 -7 -7 -7 -7 -7 -7 -6 -6 -6 -6 -6 -6 -5 -5 -5 -5 -4 -4 -3 -2 -1 ----------- Run | Yrd Mat Min Exi Min Mat Gar Mat Fac Gar Fac Low Low Dat Pro Fac Was Fac Ext Cet Fac Upp Upp War Pro Fac Res Res Acc Matter Collected 13233 | 270 251 519 105 . 512 521 908 379 315 1106 260 238 . 218 752 . 668 746 323 906 620 318 990 241 20 550 778 719 Remotely . | . . . . . . . . . . . . . . . . . . . . . . . . . . . . . Salvage Created 12521 | 120 866 259 . 21 364 350 1076 401 447 1091 171 43 . 178 1502 . 531 626 . 660 178 345 337 422 20 528 1264 721 Parts 576 | 9 54 16 . 2 26 24 58 5 23 43 7 . . 5 32 . 18 42 . 23 13 20 16 14 2 16 59 49 Haulers Intercepted 30 | . 2 . . . . . 4 1 . 7 . . . . 6 . 2 . . 4 . . . . . 2 2 . Recyclers Shooed 7 | . 1 . . . . . . 1 . . . . . . . . 2 2 . . . . . . . . 1 . Parts Field Recycled . | . . . . . . . . . . . . . . . . . . . . . . . . . . . . . Retrieved Matter . | . . . . . . . . . . . . . . . . . . . . . . . . . . . . . Parts Self-Destructed 73 | . . . . . . . . . . . 4 6 . 7 . . . . . . 11 18 . 27 . . . . Prevented 1 | . . . . . . . . . . . . . . 1 . . . . . . . . . . . . . . Parts Restored . | . . . . . . . . . . . . . . . . . . . . . . . . . . . . . Kills | -11 -10 -10 -10 -9 -8 -8 -8 -7 -7 -7 -7 -7 -7 -6 -6 -6 -6 -6 -6 -5 -5 -5 -5 -4 -4 -3 -2 -1 ------- Run | Yrd Mat Min Exi Min Mat Gar Mat Fac Gar Fac Low Low Dat Pro Fac Was Fac Ext Cet Fac Upp Upp War Pro Fac Res Res Acc Combat Hostiles Destroyed 228 | . 19 9 . . 13 18 21 . 14 16 7 . . 3 9 . 5 7 . 5 13 12 10 7 . 2 18 20 Melee 1 | . . . . . . . 1 . . . . . . . . . . . . . . . . . . . . . Guns 131 | . 19 2 . . 3 14 5 . 3 15 3 . . 3 9 . 5 7 . 5 5 2 4 5 . 2 13 7 Cannons 17 | . . 3 . . 1 4 9 . . . . . . . . . . . . . . . . . . . . . AOE 79 | . . 4 . . 9 . 6 . 11 1 4 . . . . . . . . . 8 10 6 2 . . 5 13 Classes Destroyed 24 | 2 6 1 . . 2 1 3 . 1 1 1 . . 1 . . . . . . . 1 3 . . . . 1 Worker 18 | . 1 2 . . 1 . 2 1 . 1 . . . . 6 . . . . 1 . . . . . . 1 2 Builder 12 | . . . . . . . 2 . . 1 . . . . 2 . . 4 . . . . . . . 1 1 1 Tunneler 5 | 2 . 1 . 1 . . . . . . . . . . . . . . . . . . . . . . . 1 Hauler 30 | . 2 . . . . . 4 1 . 7 . . . . 6 . 2 . . 4 . . . . . 2 2 . Recycler 19 | 1 1 . . . 1 . 2 4 . 3 . . . . 3 . 1 1 . . . . . . . 1 . 1 Minesweeper 1 | . . . . . . . . . . . 1 . . . . . . . . . . . . . . . . . Mechanic 1 | . . . . . . . 1 . . . . . . . . . . . . . . . . . . . . . Operator 8 | . 1 . . . 1 . 2 . . 1 . . . . . . . 1 . . . . . . 1 . . 1 Drone 1 | . . . . . . . . . . 1 . . . . . . . . . . . . . . . . . . Watcher 14 | . 3 . . . 1 . . . . 2 . . . . 2 . . 1 . . . . . . . 1 2 2 Swarmer 95 | . 9 3 . . 6 10 5 . . 5 . . . . . . 3 . . 2 13 7 5 1 . . 9 17 Cutter 1 | . . . . . . . . . . . . . . . . . . . . . . . . . . . . 1 Grunt 86 | . 10 5 . . 5 6 12 . 11 6 6 . . . 4 . 2 3 . 1 . 5 . 3 . 1 5 1 Brawler 3 | . . . . . . . . . . . . . . . . . . . . . . . 1 2 . . . . Duelist 5 | . . . . . 1 . 1 . . 1 . . . . 1 . . . . . . . . 1 . . . . Sentry 13 | . . . . . . . 3 . 2 . . . . 1 2 . . 3 . . . . . . . 1 1 . Demolisher 3 | . . . . . . . . . . . . . . 2 . . . . . . . . 1 . . . . . Specialist 1 | . . . . . . . . . . . . . . . . . . . . . . . 1 . . . . . Hunter 5 | . . . . . 1 1 . . . . . . . . . . . . . . . . 1 . . . 2 . Programmer 11 | . . . . . . . . . 1 3 1 . . . 2 . . . . 2 . . . . . . 1 1 Behemoth 1 | . . . . . . 1 . . . . . . . . . . . . . . . . . . . . . . Striker 1 | . . . . . . . . . . . . . . . . . . . . . . . 1 . . . . . Assembled 1 | . . 1 . . . . . . . . . . . . . . . . . . . . . . . . . . Butcher 1 | . . . . . . . . . . . . . . . . . . 1 . . . . . . . . . . Mutant 1 | . . . . . . . . . . . . . . . . . . . . . . 1 . . . . . . Best Kill Streak 13 | 3 6 3 . 1 6 6 7 3 13 4 4 . . 2 6 . 3 3 . 3 5 4 6 4 1 2 6 10 Combat Bots Only 13 | . 6 3 . . 6 6 7 . 13 3 4 . . 2 4 . 3 2 . 3 5 4 6 4 . 1 5 6 Max Kills in Single Turn 6 | 1 1 3 . 1 3 2 2 1 3 2 3 . . 1 2 . 1 2 . 2 4 4 4 2 1 1 5 6 Gunslinging 1 | . . . . . . 1 . . . 1 . . . . . . . . . 1 . . 1 1 . . 1 . Exploded 6 | . . 3 . . 3 . 2 . 3 1 3 . . . . . . . . . 4 4 4 2 . . 5 6 Melee 1 | . . . . . . . 1 . . . . . . . . . . . . . . . . . . . . . Uniques/NPCs Destroyed . | . . . . . . . . . . . . . . . . . . . . . . . . . . . . . Combat | -11 -10 -10 -10 -9 -8 -8 -8 -7 -7 -7 -7 -7 -7 -6 -6 -6 -6 -6 -6 -5 -5 -5 -5 -4 -4 -3 -2 -1 -------- Run | Yrd Mat Min Exi Min Mat Gar Mat Fac Gar Fac Low Low Dat Pro Fac Was Fac Ext Cet Fac Upp Upp War Pro Fac Res Res Acc Hostile Shots Fired 1300 | . 83 21 . . 61 130 71 2 100 96 38 2 . 50 63 1 42 65 20 30 77 15 44 32 3 56 28 170 Missed 530 | . 22 6 . . 17 46 24 2 45 44 10 . . 17 16 . 20 33 9 14 42 6 14 13 1 19 12 98 Hits 770 | . 61 15 . . 44 84 47 . 55 52 28 2 . 33 47 1 22 32 11 16 35 9 30 19 2 37 16 72 Melee 10 | . . . . . 1 . 2 . . . 2 . . . 3 1 . . . . . . . . . . . 1 Projectile 760 | . 61 15 . . 43 84 45 . 55 52 26 2 . 33 44 . 22 32 11 16 35 9 30 19 2 37 16 71 AOE 13 | . . . . . . . . . . . . . . 5 . . . . . . . . 4 . . . . 4 Critical Strikes 22 | . . . . . 1 1 1 . . 2 2 . . . . . . . 5 . 1 . 2 2 . . . 5 Actively Blocked 3 | . . . . . . . . . . . . . . . . . . . . . . . . . . . . 3 Damage Taken 13241 | . 578 203 . 54 534 1462 838 . 586 1131 411 41 . 409 678 42 431 266 299 456 742 141 720 377 45 608 409 1780 Core 1744 | . 68 47 . . 53 213 143 . 12 147 30 . . 30 103 12 90 21 24 32 104 12 165 62 . 51 115 210 Absorbed by Shields 159 | . . . . . . . . . 9 . . . . . . . . 99 51 . . . . . . . . . Redirected to Shielding 127 | . . . . . 38 15 31 . . . . . . . . . . . . . . . . . . . 15 28 Ignored by Resistances 19 | . . . . . . . . . . . . . . . . . . . . . . . . . . . . 19 Regen/Repaired (Parts) 504 | . . . . . . . . 73 . . . . . . . . . . . . . . 370 . . 61 . . Core Remaining (%) 75 | 100 . . . 54 . . 25 . . . . . . 68 . . . . 70 . . . . 62 100 96 92 86 Volleys Fired 706 | 4 83 43 . 3 31 40 50 . 19 52 18 . . 10 39 . 31 51 10 40 22 24 45 13 4 9 32 33 Largest 4 | 2 2 2 . 2 3 3 3 . 3 4 4 . . 4 3 . 4 4 4 4 4 4 4 3 2 4 4 3 Hottest 338 | 90 90 80 . 75 180 180 116 . 81 106 106 . . 109 86 . 112 117 338 189 138 129 126 108 136 151 138 120 Shots Fired 1685 | 8 162 60 . 4 63 91 110 . 29 138 50 1 . 41 115 . 56 114 27 133 52 42 139 32 6 20 115 77 Gun 1388 | 8 152 22 . 1 29 56 53 . 16 132 45 1 . 41 115 . 38 94 27 128 42 26 136 28 3 15 113 67 Cannon 207 | . 10 25 . 3 22 35 50 . . 3 . . . . . . 18 18 . 5 4 5 . . 3 5 . 1 Launcher 83 | . . 11 . . 12 . 7 . 13 3 5 . . . . . . 2 . . 6 11 2 4 . . 2 5 Special 7 | . . 2 . . . . . . . . . . . . . . . . . . . . 1 . . . . 4 Kinetic 1319 | . 20 37 . 3 36 55 103 . 16 132 45 1 . 41 115 . 38 94 25 128 42 26 136 28 3 15 113 67 Thermal 233 | 4 120 3 . . 6 36 . . . 3 . . . . . . 18 18 2 5 4 5 . . 3 5 . 1 Explosive 83 | . . 11 . . 12 . 7 . 13 3 5 . . . . . . 2 . . 6 11 2 4 . . 2 5 Electromagnetic 45 | 4 22 9 . 1 9 . . . . . . . . . . . . . . . . . . . . . . . Robot Hit Streak 18 | 3 9 6 . 2 18 18 8 . 14 17 10 2 . 7 17 . 8 13 6 6 6 6 9 4 1 2 9 8 Robot Miss Streak 12 | 1 5 4 . 1 6 8 3 . 2 12 8 . . 5 9 . 3 9 5 6 8 4 4 3 1 2 6 3 Penetration Max 2 | . . . . . . . 1 . . . . . . 1 1 . 1 1 1 1 . 1 1 1 . . 2 1 Secondary Targets 21 | . 1 . . . . 2 . . . 2 1 . . 1 1 . 1 . . 2 1 . 1 1 . . 6 1 Max Gunslinging Chain 2 | . 1 . . . . 1 . . . 1 1 . . 1 1 . 1 . . 1 1 . 1 1 . . 2 1 Shots Hit Robots 1055 | 4 93 30 . 3 35 72 74 15 12 98 37 2 . 32 116 . 29 61 11 69 18 16 79 13 2 16 71 47 Core Hits 780 | 4 40 19 . 1 37 51 47 4 44 98 30 1 . 30 75 . 14 60 2 23 20 24 43 19 . 9 48 37 Critical Kills 18 | . . . . . . . . . . . . . . . 2 . 1 2 . 1 2 1 2 1 . 2 4 . Critical Parts Destroyed 29 | . . . . . . . 1 . . 2 . . . . 8 . 2 5 . 1 . 2 2 2 . . 3 1 Critical Strikes 66 | . 8 . . . . 2 5 1 . 2 . . . . 10 . 3 8 . 2 2 4 6 3 . 2 7 1 Burn 8 | . 8 . . . . . . . . . . . . . . . . . . . . . . . . . . . Destroy 41 | . . . . . . . 1 . . . . . . . 2 . 3 8 . 2 2 4 6 3 . 2 7 1 Blast 4 | . . . . . . 2 2 . . . . . . . . . . . . . . . . . . . . . Smash 10 | . . . . . . . . . . 2 . . . . 8 . . . . . . . . . . . . . Sever 3 | . . . . . . . 2 1 . . . . . . . . . . . . . . . . . . . . Melee Attacks 358 | . . . . . . 25 21 26 18 51 12 2 . 6 46 . 16 . 1 . 7 5 . . 9 45 30 38 Impact 156 | . . . . . . . . 5 18 51 12 2 . 6 46 . 16 . . . . . . . . . . . Slashing 202 | . . . . . . 25 21 21 . . . . . . . . . . 1 . 7 5 . . 9 45 30 38 Piercing . | . . . . . . . . . . . . . . . . . . . . . . . . . . . . . Sneak Attacks 55 | . . . . . . . 9 6 . 10 1 . . . 16 . 3 . . . . . . . 1 7 1 1 Combat Hostiles 1 | . . . . . . . . . . . . . . . . . . . . . . . . . . 1 . . Follow-up Attacks . | . . . . . . . . . . . . . . . . . . . . . . . . . . . . . Damage Inflicted 37095 | 56 1150 717 . 66 1421 1702 2804 817 1634 2880 1415 119 . 747 3682 . 872 1502 359 1783 1477 1300 2839 788 118 899 2553 3395 Guns 18045 | 54 1089 164 . 11 287 1020 739 . 217 1542 591 18 . 633 1955 . 382 1097 313 1783 440 351 1985 415 27 122 1876 934 Cannons 2332 | . 53 285 . 33 252 682 865 . . . . . . . . . 162 . . . . . . . . . . . Explosions 9877 | . . 268 . 22 882 . 421 . 1417 132 717 . . . . . . 405 . . 1037 949 854 373 . . 390 2010 Melee 6763 | . . . . . . . 779 817 . 1206 107 101 . 114 1727 . 328 . 46 . . . . . 91 777 287 383 Ramming 78 | 2 8 . . . . . . . . . . . . . . . . . . . . . . . . . . 68 Kinetic 17916 | . 94 326 . 33 294 884 1604 . 217 1542 591 18 . 633 1955 . 382 1097 313 1783 440 351 1985 415 27 122 1876 934 Thermal 2279 | 12 900 18 . 22 100 818 . . . . . . . . . . 162 247 . . . . . . . . . . Explosive 9587 | . . 268 . . 882 . 421 . 1417 132 717 . . . . . . 158 . . 1037 949 854 373 . . 390 1989 Electromagnetic 472 | 42 148 105 . 11 145 . . . . . . . . . . . . . . . . . . . . . . 21 Impact 3805 | . . . . . . . . 222 . 1206 107 101 . 114 1727 . 328 . . . . . . . . . . . Slashing 2958 | . . . . . . . 779 595 . . . . . . . . . . 46 . . . . . 91 777 287 383 Piercing . | . . . . . . . . . . . . . . . . . . . . . . . . . . . . . Highest Corruption 34 | . 3 3 3 3 . 1 3 . . 17 18 18 18 18 1 10 10 12 34 1 1 1 1 1 . . . 7 Average Corruption 7 | . 2 3 3 3 . 1 1 . . 13 17 18 18 18 1 5 10 10 24 1 1 1 1 1 . . . 4 Corruption Purged 5 | . . . . . . . . . . . . . . . . . . . . . . 1 . . . . . 4 Corruption Blocked . | . . . . . . . . . . . . . . . . . . . . . . . . . . . . . Effects 343 | . 10 16 9 14 . 2 11 . . 52 31 30 4 42 . 1 32 37 22 13 2 . . 2 . . . 13 Message Errors 84 | . 2 5 5 2 . . 1 . . 9 7 10 3 11 . . 10 6 3 5 . . . 1 . . . 4 Matter Fused 62 | . 2 2 2 6 . . 3 . . 4 8 5 . 8 . . 5 4 7 3 . . . . . . . 3 Heat Flow Errors 41 | . 1 3 . . . 1 1 . . 10 3 2 . 5 . . 5 7 2 1 . . . . . . . . Energy Discharges 42 | . 1 3 1 2 . 1 1 . . 5 4 2 . 7 . . 4 3 3 3 . . . . . . . 2 Parts Rejected 4 | . . . . . . . . . . . . . . . . 1 . 2 . . . . . . . . . 1 Parts Fused 4 | . . . . . . . 1 . . . . 1 . . . . . . 1 . . . . . . . . 1 Data Loss (minor) 45 | . 1 1 . 4 . . 3 . . 7 3 7 1 4 . . 3 4 3 . 2 . . 1 . . . 1 Data Loss (major) 16 | . . 2 1 . . . . . . 2 1 2 . 4 . . 2 1 . 1 . . . . . . . . Misfires 21 | . 2 . . . . . 1 . . 4 3 1 . 2 . . . 5 2 . . . . . . . . 1 Alerts 1 | . . . . . . . . . . . . . . . . . . 1 . . . . . . . . . . Misdirections 13 | . . . . . . . . . . 9 1 . . . . . 2 . 1 . . . . . . . . . Weapon Failures 10 | . 1 . . . . . . . . 2 1 . . 1 . . 1 4 . . . . . . . . . . Overload Shots 2 | . . . . . . . . . . . . . . . . . . . 2 . . . . . . . . . Overflow Damage 2220 | . . 6 . . 74 3 76 158 13 461 70 . . 14 767 . 39 26 . . 19 61 37 . 61 42 3 290 Projectiles 30 | . . . . . . 3 24 . . . . . . . . . 3 . . . . . . . . . . . Explosions 523 | . . 6 . . 74 . 1 . 13 . 3 . . . . . . 26 . . 19 61 37 . . . . 283 Melee 1667 | . . . . . . . 51 158 . 461 67 . . 14 767 . 36 . . . . . . . 61 42 3 7 Knockbacks 31 | . . 1 . 1 4 8 4 1 . 4 1 . . . 6 . 1 . . . . . . . . . . . Impact 13 | . . . . . . . . 1 . 4 1 . . . 6 . 1 . . . . . . . . . . . Kinetic 16 | . . 1 . 1 4 7 3 . . . . . . . . . . . . . . . . . . . . . Secondary 2 | . . . . . . 1 1 . . . . . . . . . . . . . . . . . . . . . Self-Inflicted Damage 312 | . . 28 . 25 . . 43 . . 41 . . . . . . . . . . 31 . . . . . . 144 Shots 7 | . . 1 . 1 . . 1 . . 1 . . . . . . . . . . 1 . . . . . . 2 Rammed 3 | 1 2 . . . . . . . . . . . . . . . . . . . . . . . . . . . Targets Rammed 3 | 1 2 . . . . . . . . . . . . . . . . . . . . . . . . . . . Kicked . | . . . . . . . . . . . . . . . . . . . . . . . . . . . . . Crushed . | . . . . . . . . . . . . . . . . . . . . . . . . . . . . . Highest Temperature 466 | 90 270 267 . 27 248 465 226 . 40 258 466 84 . 256 43 . 420 282 408 224 390 220 403 254 63 132 178 48 Average Temperature 95 | 41 93 78 . 18 68 132 91 . 16 75 240 44 . 101 10 . 111 97 153 46 101 67 163 110 31 53 40 9 Received Heat Transfer 2814 | . 177 90 . . 216 532 315 . 243 135 180 . . 66 156 . 21 91 27 54 36 27 30 121 9 54 36 198 Effects 29 | . 1 2 . . . 5 . . . . 2 . . . . . . 3 1 2 1 . 9 3 . . . . Shutdowns 3 | . . . . . . 2 . . . . . . . . . . . . . . 1 . . . . . . . Energy Bleed 5 | . 1 . . . . 1 . . . . . . . . . . . . . . . . 3 . . . . . Interference 14 | . . 2 . . . 1 . . . . . . . . . . . 3 . 2 . . 3 3 . . . . Matter Decay 2 | . . . . . . . . . . . 1 . . . . . . . 1 . . . . . . . . . Short Circuit 2 | . . . . . . . . . . . 1 . . . . . . . . . . . 1 . . . . . Damage (minor) 1 | . . . . . . 1 . . . . . . . . . . . . . . . . . . . . . . Damage (major) 2 | . . . . . . . . . . . . . . . . . . . . . . . 2 . . . . . Siege Activations . | . . . . . . . . . . . . . . . . . . . . . . . . . . . . . Martial Activations . | . . . . . . . . . . . . . . . . . . . . . . . . . . . . . Shielding Activations . | . . . . . . . . . . . . . . . . . . . . . . . . . . . . . Robots Disrupted . | . . . . . . . . . . . . . . . . . . . . . . . . . . . . . Combat Hostiles . | . . . . . . . . . . . . . . . . . . . . . . . . . . . . . Robots Corrupted 17 | . . . . . . . . 1 . 5 1 . . 1 8 . 1 . . . . . . . . . . . Combat Hostiles . | . . . . . . . . . . . . . . . . . . . . . . . . . . . . . Parts Fried 27 | . . . . . . . . . . 11 1 . . 1 14 . . . . . . . . . . . . . Impact Corruptions 49 | . . . . . . . . 1 . 16 3 . . 1 26 . 2 . . . . . . . . . . . Robots Melted 1 | . 1 . . . . . . . . . . . . . . . . . . . . . . . . . . . Combat Hostiles . | . . . . . . . . . . . . . . . . . . . . . . . . . . . . . Parts Melted 5 | . 1 . . . 1 2 . . . . . . . . . . . . . . . . . . . . . 1 Heat Transferred 5182 | 37 3115 37 . 50 225 1368 . . . . . . . . . . 250 100 . . . . . . . . . . Parts Sabotaged . | . . . . . . . . . . . . . . . . . . . . . . . . . . . . . Parts Stolen 1 | . . . . . . . . . . . 1 . . . . . . . . . . . . . . . . . Parts Stripped . | . . . . . . . . . . . . . . . . . . . . . . . . . . . . . Power Chain Reactions 1 | . . . . 1 . . . . . . . . . . . . . . . . . . . . . . . . Alert | -11 -10 -10 -10 -9 -8 -8 -8 -7 -7 -7 -7 -7 -7 -6 -6 -6 -6 -6 -6 -5 -5 -5 -5 -4 -4 -3 -2 -1 ------- Run | Yrd Mat Min Exi Min Mat Gar Mat Fac Gar Fac Low Low Dat Pro Fac Was Fac Ext Cet Fac Upp Upp War Pro Fac Res Res Acc Maximum Alert Level 4 | . . . . . 1 3 2 1 3 3 . . . . . . . 3 1 2 . . . . 1 2 2 4 Low Security (%) 40 | 100 100 100 . 100 88 22 . . 4 . . . . . 100 100 100 35 . 18 . . . . 98 10 . . Level 1 24 | . . . . . 11 35 28 100 23 34 . . . . . . . 19 100 50 . . . . 1 43 23 12 Level 2 31 | . . . . . . 36 71 . 38 57 . . . . . . . 29 . 30 . . . . . 46 76 50 Level 3 4 | . . . . . . 4 . . 34 7 . . . . . . . 15 . . . . . . . . . 27 Level 4 . | . . . . . . . . . . . . . . . . . . . . . . . . . . . . 8 Level 5 . | . . . . . . . . . . . . . . . . . . . . . . . . . . . . . High Security . | . . . . . . . . . . . . . . . . . . . . . . . . . . . . . Max Security . | . . . . . . . . . . . . . . . . . . . . . . . . . . . . . Peak Influence 1237 | 10 184 128 . 11 287 889 687 310 792 810 . . . . 176 57 85 745 396 650 . . . . 202 599 696 1237 Initial 432 | . . 26 . . . 52 432 310 169 415 . . . . . 57 18 8 396 198 . . . . 151 100 306 278 Average 308 | 1 116 41 . . 133 381 438 282 543 461 . . . . 41 52 32 366 321 351 . . . . 156 379 498 711 Influence Increases 14135 | 15 600 390 . 11 512 887 771 82 653 1035 225 5 . 65 530 . 332 1390 358 1204 622 295 320 400 151 782 697 1803 Destroy 0b10 Robot/C 5980 | . 380 200 . . 260 360 420 . 280 300 140 . . 60 180 . 100 620 160 440 320 240 260 260 . 40 360 600 Destroy 0b10 Robot/NC 575 | 15 40 15 . 5 20 . 65 30 . 75 5 5 . 5 95 . 15 45 10 25 . . . . 5 25 30 45 Destroy Leader 840 | . 80 30 . . 42 10 108 2 30 78 20 . . . 66 . 12 56 . 98 30 10 . 10 . 16 68 74 Allied During Kill 1141 | . . 12 . . . . . . . . . . . . . . . 420 153 381 77 . 15 40 . . . 43 Trap Triggered on 0b10 20 | . . . . . . 20 . . . . . . . . . . . . . . . . . . . . . . Successful Hack 243 | . 8 . . . 19 14 10 14 . 39 . . . . 5 . 29 . . 20 . . . . . 14 8 63 Select Force Hacks 60 | . 60 . . . . . . . . . . . . . . . . . . . . . . . . . . . Disable Machine 630 | . 15 60 . . 30 30 45 . . 45 . . . . 30 . . 30 30 150 . . . . 30 30 . 105 Anti-Garrison Action 450 | . . . . . . 250 . . 200 . . . . . . . . . . . . . . . . . . . Destroy Structure 1151 | . 2 58 . 6 66 98 78 6 83 78 . . . . 19 . 26 69 5 60 . . . . 26 72 111 288 Partial Spotted 330 | . . . . . . 15 . 15 15 15 . . . . 30 . 30 45 . . . . . . 15 60 45 45 Lose Combat Pursuer 2715 | . 15 15 . . 75 90 45 15 45 405 60 . . . 105 . 120 105 . 30 195 45 45 90 75 525 75 540 Influence Decreases 12898 | 15 531 360 99 11 432 78 977 523 103 1017 610 402 28 65 366 137 341 699 713 953 595 291 776 340 199 430 776 1031 Entered New Map 4223 | . . 43 99 . . 28 457 373 73 377 300 82 28 . . 107 9 10 313 156 225 121 636 180 89 92 238 187 Time Decay 6702 | 15 501 287 . 11 272 . 490 150 . 580 270 310 . 65 313 10 287 402 190 577 270 170 112 80 110 318 538 374 Lost Part 706 | . 30 10 . . 10 50 30 . 30 50 40 10 . . 53 20 35 20 50 10 60 . 28 20 . 20 . 130 Lost Ally 640 | . . 20 . . . . . . . 10 . . . . . . 10 240 160 60 40 . . 60 . . . 40 Purge Threat 627 | . . . . . 150 . . . . . . . . . . . . 27 . 150 . . . . . . . 300 Squads Dispatched 79 | . 5 . . . 1 . 7 2 . 14 . . . . 9 . 7 1 . 6 . 1 . 1 1 8 2 14 Investigation 18 | . 4 . . . . . 1 1 . . . . . . 1 . 2 . . . . 1 . . . 4 2 2 Extermination 19 | . . . . . . . . 1 . 5 . . . . 3 . 2 . . 3 . . . . . . . 5 Reinforcement 32 | . 1 . . . 1 . 5 . . 5 . . . . 4 . 3 1 . 3 . . . . 1 4 . 4 Assault 2 | . . . . . . . 1 . . . . . . . . . . . . . . . . 1 . . . . Garrison 8 | . . . . . . . . . . 4 . . . . 1 . . . . . . . . . . . . 3 Intercept . | . . . . . . . . . . . . . . . . . . . . . . . . . . . . . Searches Triggered . | . . . . . . . . . . . . . . . . . . . . . . . . . . . . . Construction Impeded 4 | . . . . . . . 1 . . 1 . . . . . . . 1 . . . . . . . . . 1 Haulers Reinforced 11 | . . . . . . . . . . 3 . . . . 3 . 1 . . 2 . . . . . 2 . . Active Scanning Responses . | . . . . . . . . . . . . . . . . . . . . . . . . . . . . . Cargo Convoy Interrupts 1 | . . . . . . . . . . . . . . . 1 . . . . . . . . . . . . . Stealth | -11 -10 -10 -10 -9 -8 -8 -8 -7 -7 -7 -7 -7 -7 -6 -6 -6 -6 -6 -6 -5 -5 -5 -5 -4 -4 -3 -2 -1 --------- Run | Yrd Mat Min Exi Min Mat Gar Mat Fac Gar Fac Low Low Dat Pro Fac Was Fac Ext Cet Fac Upp Upp War Pro Fac Res Res Acc Distress Signals 51 | . . 1 . . 2 . 1 1 . 2 . . . 15 1 . 1 3 2 2 . . . . 1 10 8 1 Communications Jammed 107 | . . . . . . . . . . 25 . . . . 74 . 4 . . 1 . . . . . 3 . . Distress Signals 90 | . . . . . . . . . . 9 . . . . 74 . 4 . . . . . . . . 3 . . Times Spotted 549 | . 33 10 . . 28 24 32 2 15 57 12 1 . 9 18 5 17 28 11 25 21 11 42 22 3 29 34 60 Peak Tracking Total 13 | . 6 2 . . 7 6 6 2 6 7 4 . . 4 5 5 5 4 5 4 7 4 10 13 6 11 6 13 Tactical Retreats 89 | . 1 1 . . 3 4 3 1 1 16 2 . . . 4 . 5 5 . 1 5 1 2 2 3 11 3 15 Traps | -11 -10 -10 -10 -9 -8 -8 -8 -7 -7 -7 -7 -7 -7 -6 -6 -6 -6 -6 -6 -5 -5 -5 -5 -4 -4 -3 -2 -1 ------- Run | Yrd Mat Min Exi Min Mat Gar Mat Fac Gar Fac Low Low Dat Pro Fac Was Fac Ext Cet Fac Upp Upp War Pro Fac Res Res Acc Traps Triggered 34 | . 2 . . 1 . 3 3 1 2 6 . . . . 1 . 6 . . 4 . . . . . 1 . 4 Indirectly . | . . . . . . . . . . . . . . . . . . . . . . . . . . . . . Trap Hack Attempts . | . . . . . . . . . . . . . . . . . . . . . . . . . . . . . Triggered . | . . . . . . . . . . . . . . . . . . . . . . . . . . . . . Disarmed . | . . . . . . . . . . . . . . . . . . . . . . . . . . . . . Reprogrammed . | . . . . . . . . . . . . . . . . . . . . . . . . . . . . . Reused 2 | . . . . . . 2 . . . . . . . . . . . . . . . . . . . . . . Traps Extracted 4 | . . . . . . 4 . . . . . . . . . . . . . . . . . . . . . . Installed 7 | . . . . . . 6 . . . . 1 . . . . . . . . . . . . . . . . . Triggered 2 | . . . . . . 2 . . . . . . . . . . . . . . . . . . . . . . Most Traps Carried 3 | . . . . 3 3 3 . . . . . . . . . . . . . . . . . . . . . . Machines | -11 -10 -10 -10 -9 -8 -8 -8 -7 -7 -7 -7 -7 -7 -6 -6 -6 -6 -6 -6 -5 -5 -5 -5 -4 -4 -3 -2 -1 ---------- Run | Yrd Mat Min Exi Min Mat Gar Mat Fac Gar Fac Low Low Dat Pro Fac Was Fac Ext Cet Fac Upp Upp War Pro Fac Res Res Acc Machines Disabled 55 | . 1 4 . . 2 5 3 . 4 3 . 1 . 3 2 . . 2 2 10 . 1 . 1 2 2 . 7 Max in Single Turn 3 | . 1 3 . . 1 1 1 . 1 3 . 1 . 1 1 . . 1 1 2 . 1 . 1 1 2 . 1 Garrison Access 7 | . . . . . . . . . . . . . . . . . 1 . . 1 . . . . . 1 3 1 Garrison Relay 7 | . . . . . . 3 . . 4 . . . . . . . . . . . . . . . . . . . Energy Cycler 2 | . . . . . . . . . . . . . . . . . . 1 . . . . . . . . . 1 Machines Repaired . | . . . . . . . . . . . . . . . . . . . . . . . . . . . . . Machines Dismantled . | . . . . . . . . . . . . . . . . . . . . . . . . . . . . . Machines Sabotaged . | . . . . . . . . . . . . . . . . . . . . . . . . . . . . . Overloaded Fab Kills . | . . . . . . . . . . . . . . . . . . . . . . . . . . . . . Hacking | -11 -10 -10 -10 -9 -8 -8 -8 -7 -7 -7 -7 -7 -7 -6 -6 -6 -6 -6 -6 -5 -5 -5 -5 -4 -4 -3 -2 -1 --------- Run | Yrd Mat Min Exi Min Mat Gar Mat Fac Gar Fac Low Low Dat Pro Fac Was Fac Ext Cet Fac Upp Upp War Pro Fac Res Res Acc Machines Accessed 111 | . 6 . 2 2 6 1 6 7 . 19 . . 4 . 3 . 9 1 1 10 . 1 1 . 3 10 4 15 Terminals 53 | . 4 . . 1 4 1 3 3 . 9 . . . . 1 . 4 1 1 4 . 1 . . 2 5 . 9 Fabricators 8 | . . . . . . . . . . 3 . . . . 1 . 3 . . 1 . . . . . . . . Repair Stations 3 | . . . . . . . . 1 . 1 . . . . . . . . . . . . . . . 1 . . Recycling Units 10 | . 2 . . . . . 2 . . 2 . . . . . . . . . 3 . . . . . . . 1 Scanalyzers 12 | . . . . . 1 . 1 2 . 1 . . . . . . . . . 1 . . . . 1 2 2 1 Garrison Access 17 | . . . . . 1 . . 1 . 3 . . . . 1 . 2 . . 1 . . . . . 2 2 4 Total Hacks 267 | . 18 . 3 2 18 1 16 15 . 39 . . 29 . 7 . 23 6 1 19 . 6 1 . 6 13 10 34 Successful 143 | . 11 . 3 2 10 1 8 10 . 13 . . 29 . 2 . 11 3 . 11 . 6 1 . 1 5 6 10 Failed 122 | . 7 . . . 7 . 8 5 . 26 . . . . 5 . 12 3 1 8 . . . . 4 8 4 24 Catastrophic 22 | . . . . . . . . 1 . 3 . . . . . . 2 . 1 6 . . . . . 5 1 3 Database Lockouts 2 | . . . . . 1 . . . . . . . . . . . . . . . . . . . 1 . . . Manual 92 | . 13 1 1 . 9 . 7 6 . 18 . 1 . . 3 . 11 2 1 7 . . 1 . . 4 . 7 Terminals 136 | . 12 . . 1 14 1 10 8 . 21 . . . . 3 . 8 6 1 9 . 6 . . 4 8 . 24 Fabricators 21 | . . . . . . . . . . 4 . . . . 2 . 12 . . 3 . . . . . . . . Repair Stations 5 | . . . . . . . . 2 . 2 . . . . . . . . . . . . . . . 1 . . Recycling Units 19 | . 6 . . . . . 3 . . 4 . . . . . . . . . 4 . . . . . . . 2 Scanalyzers 25 | . . . . . 3 . 3 4 . 1 . . . . . . . . . 2 . . . . 2 2 7 1 Garrison Access 27 | . . . . . 1 . . 1 . 7 . . . . 2 . 3 . . 1 . . . . . 2 3 7 Terminal Hacks 71 | . 2 . 3 2 3 1 1 2 . 5 . . 29 . . . 1 3 . 3 . 6 1 . . 2 . 7 Record 20 | . . . 2 . . . . . . . . . 11 . . . . 1 . . . 6 . . . . . . Part Schematic 10 | . . . . . . . . . . 1 . . 9 . . . . . . . . . . . . . . . Robot Schematic 6 | . . . . . . . . . . . . . 6 . . . . . . . . . . . . . . . Robot Analysis 2 | . 2 . . . . . . . . . . . . . . . . . . . . . . . . . . . Prototype ID Bank 4 | . . . . . . . . . . . . . 3 . . . . . . . . . . . . . . 1 Open Door 2 | . . . . 1 . . . . . . . . . . . . . . . . . . 1 . . . . . Branch Access Points 5 | . . . . . . . 1 . . 1 . . . . . . 1 . . 1 . . . . . 1 . . Emergency Access Points 1 | . . . . . . 1 . . . . . . . . . . . . . . . . . . . . . . Terminal Index 1 | . . . . . . . . . . . . . . . . . . . . . . . . . . . . 1 Unreport Threat 5 | . . . . . 1 . . . . . . . . . . . . 1 . 1 . . . . . . . 2 Locate Traps 3 | . . . . . 1 . . 1 . . . . . . . . . 1 . . . . . . . . . . Dispatch Records 2 | . . . . 1 . . . . . . . . . . . . . . . . . . . . . . . 1 Patrol Status 1 | . . . . . . . . . . . . . . . . . . . . . . . . . . . . 1 Hauler Manifests 4 | . . . . . 1 . . 1 . 1 . . . . . . . . . . . . . . . . . 1 Registered Components 1 | . . . . . . . . . . 1 . . . . . . . . . . . . . . . . . . Zone Layout 3 | . . . . . . . . . . 1 . . . . . . . . . 1 . . . . . 1 . . Proto ID Catalog 1 | . . . 1 . . . . . . . . . . . . . . . . . . . . . . . . . Fabricator Hacks 9 | . . . . . . . . . . 1 . . . . 1 . 5 . . 2 . . . . . . . . Network Status 2 | . . . . . . . . . . 1 . . . . . . 1 . . . . . . . . . . . Load Schematic 5 | . . . . . . . . . . . . . . . 1 . 3 . . 1 . . . . . . . . Build 2 | . . . . . . . . . . . . . . . . . 1 . . 1 . . . . . . . . Repair Station Hacks 2 | . . . . . . . . 2 . . . . . . . . . . . . . . . . . . . . Scan Component 1 | . . . . . . . . 1 . . . . . . . . . . . . . . . . . . . . Repair 1 | . . . . . . . . 1 . . . . . . . . . . . . . . . . . . . . Recycling Unit Hacks 8 | . 2 . . . . . 2 . . 1 . . . . . . . . . 2 . . . . . . . 1 Retrieve Components 8 | . 2 . . . . . 2 . . 1 . . . . . . . . . 2 . . . . . . . 1 Scanalyzer 19 | . . . . . 3 . 3 3 . 1 . . . . . . . . . 2 . . . . 1 1 5 . Insert Component 3 | . . . . . . . 1 . . . . . . . . . . . . . . . . . . 1 1 . Retrieve Study 16 | . . . . . 3 . 2 3 . 1 . . . . . . . . . 2 . . . . 1 . 4 . Garrison Access Hacks 7 | . . . . . 1 . . 1 . . . . . . . . 1 . . 1 . . . . . 1 1 1 Unlock Access 2 | . . . . . 1 . . 1 . . . . . . . . . . . . . . . . . . . . Seal Access 5 | . . . . . . . . . . . . . . . . . 1 . . 1 . . . . . 1 1 1 Unauthorized Hacks 27 | . 7 . . . 3 . 2 2 . 5 . . . . 1 . 4 . . 1 . . . . . 1 . 1 Terminals 22 | . 5 . . . 3 . 2 2 . 4 . . . . 1 . 3 . . 1 . . . . . . . 1 Assimilate 3 | . . . . . . . . . . 2 . . . . . . 1 . . . . . . . . . . . Botnet 14 | . 2 . . . 2 . 2 2 . 1 . . . . 1 . 2 . . 1 . . . . . . . 1 Disrupt 1 | . . . . . . . . . . 1 . . . . . . . . . . . . . . . . . . Skim 4 | . 3 . . . 1 . . . . . . . . . . . . . . . . . . . . . . . Fabricators 2 | . . . . . . . . . . 1 . . . . . . 1 . . . . . . . . . . . Haulers 1 | . . . . . . . . . . 1 . . . . . . . . . . . . . . . . . . Recompile 1 | . . . . . . . . . . . . . . . . . 1 . . . . . . . . . . . Repair Stations 1 | . . . . . . . . . . . . . . . . . . . . . . . . . . 1 . . Patch 1 | . . . . . . . . . . . . . . . . . . . . . . . . . . 1 . . Recycling Units 2 | . 2 . . . . . . . . . . . . . . . . . . . . . . . . . . . Tunnel 2 | . 2 . . . . . . . . . . . . . . . . . . . . . . . . . . . Scanalyzers . | . . . . . . . . . . . . . . . . . . . . . . . . . . . . . Garrison Access . | . . . . . . . . . . . . . . . . . . . . . . . . . . . . . Data Cores Recovered 2 | . . . . . . . 1 . . . . . . . . . . . . . . . . . 1 . . . Used 1 | . . . . . . . . . . . . . . . . . . . . . . . . . 1 . . . Hacking Detections 78 | . 5 . . . 6 1 5 3 . 15 . . . . 3 . 6 1 1 6 . 1 . . 2 7 3 13 Full Trace Events 8 | . 1 . . . . . 1 . . . . . . . . . . . . . . 1 . . . 1 2 2 Feedback Events 2 | . 1 . . . . . . . . . . . . . . . . . . . . . . . . . . 1 Corruption 1 | . 1 . . . . . . . . . . . . . . . . . . . . . . . . . . . Hackware Fried 1 | . . . . . . . . . . . . . . . . . . . . . . . . . . . . 1 Feedback Blocked . | . . . . . . . . . . . . . . . . . . . . . . . . . . . . . Robot Schematics Acquired 6 | . . . . . . . . . . . . . 6 . . . . . . . . . . . . . . . Robots Built . | . . . . . . . . . . . . . . . . . . . . . . . . . . . . . Authchips . | . . . . . . . . . . . . . . . . . . . . . . . . . . . . . Time . | . . . . . . . . . . . . . . . . . . . . . . . . . . . . . Total Robot Build Rating . | . . . . . . . . . . . . . . . . . . . . . . . . . . . . . Part Schematics Acquired 10 | . . . . . . . . . . 1 . . 9 . . . . . . . . . . . . . . . Parts Built 2 | . . . . . . . . . . . . . . . . . 1 . . 1 . . . . . . . . Authchips 2 | . . . . . . . . . . . . . . . . . 1 . . 1 . . . . . . . . Time 152 | . . . . . . . . . . . . . . . . . 76 . . 76 . . . . . . . . Total Part Build Rating 10 | . . . . . . . . . . . . . . . . . 5 . . 5 . . . . . . . . Part Studies Acquired 16 | . . . . . 3 . 2 3 . 1 . . . . . . . . . 2 . . . . 1 . 4 . Parts Repaired 1 | . . . . . . . . 1 . . . . . . . . . . . . . . . . . . . . Time 32 | . . . . . . . . 32 . . . . . . . . . . . . . . . . . . . . Parts Recycled . | . . . . . . . . . . . . . . . . . . . . . . . . . . . . . Recycled Matter . | . . . . . . . . . . . . . . . . . . . . . . . . . . . . . Retrieved Matter . | . . . . . . . . . . . . . . . . . . . . . . . . . . . . . Retrieved Components 48 | . 11 . . . . . 11 . . 10 . . . . . . . . . 13 . . . . . . . 3 Parts Scanalyzed . | . . . . . . . . . . . . . . . . . . . . . . . . . . . . . Part Schematics Acquired . | . . . . . . . . . . . . . . . . . . . . . . . . . . . . . Parts Damaged . | . . . . . . . . . . . . . . . . . . . . . . . . . . . . . Bothacking | -11 -10 -10 -10 -9 -8 -8 -8 -7 -7 -7 -7 -7 -7 -6 -6 -6 -6 -6 -6 -5 -5 -5 -5 -4 -4 -3 -2 -1 ------------ Run | Yrd Mat Min Exi Min Mat Gar Mat Fac Gar Fac Low Low Dat Pro Fac Was Fac Ext Cet Fac Upp Upp War Pro Fac Res Res Acc Used RIF Installer . | . . . . . . . . . . . . . . . . . . . . . . . . . . . . . Robots Hacked . | . . . . . . . . . . . . . . . . . . . . . . . . . . . . . Non-combat . | . . . . . . . . . . . . . . . . . . . . . . . . . . . . . Combat . | . . . . . . . . . . . . . . . . . . . . . . . . . . . . . Robot Hacks Applied . | . . . . . . . . . . . . . . . . . . . . . . . . . . . . . Relay Couplers Released 28 | . . . . . . 11 . . 15 . . . . . . . . . . . . . . . . . 2 . Machine Destruction 28 | . . . . . . 11 . . 15 . . . . . . . . . . . . . . . . . 2 . Fabnet Peak Effective % . | . . . . . . . . . . . . . . . . . . . . . . . . . . . . . Robots Rewired 25 | . . . . . . . . . . . . . . . . . . 23 . . . . . 2 . . . . Allies Hacked 2 | . . . . . . . . . . . . . . . . . . . . 2 . . . . . . . . Hacks Repelled . | . . . . . . . . . . . . . . . . . . . . . . . . . . . . . Allies | -11 -10 -10 -10 -9 -8 -8 -8 -7 -7 -7 -7 -7 -7 -6 -6 -6 -6 -6 -6 -5 -5 -5 -5 -4 -4 -3 -2 -1 -------- Run | Yrd Mat Min Exi Min Mat Gar Mat Fac Gar Fac Low Low Dat Pro Fac Was Fac Ext Cet Fac Upp Upp War Pro Fac Res Res Acc Total Allies 44 | . . 3 . . . . . . . 2 . . . . . . 1 26 5 . . . 1 2 . . . 4 Largest Group 14 | . . 3 . . . . . . . 1 . . . . . . 1 14 14 8 2 . 1 2 . . . 2 Highest-Rated Group 781 | . . 76 . . . . . . . 10 . . . . . . 26 479 781 531 185 . 119 149 . . . 402 Highest-Rated Ally 219 | . . 31 . . . . . . . 10 . . . . . . 26 159 159 152 96 . 119 119 . . . 219 Initial Warlord ECA Mod 10 | . . . . . . . 7 6 6 10 10 10 10 9 9 9 9 9 9 8 8 8 8 7 7 6 5 4 Total Orders . | . . . . . . . . . . . . . . . . . . . . . . . . . . . . . Ally Attacks 328 | . . 13 . . . . . . . . . . . . . . . 92 92 70 19 . 3 17 . . . 22 Total Damage 10979 | . . 211 . . . . . . . . . . . . . . . 2767 2395 2492 718 . 204 698 . . . 1494 Kills 80 | . . 2 . . . . . . . . . . . . . . . 26 11 18 3 . 3 6 . . . 11 Allies Corrupted 1 | . . . . . . . . . . 1 . . . . . . . . . . . . . . . . . . Allies Melted 4 | . . . . . . . . . . . . . . . . . . . . . . . 1 1 . . 2 . Field Lobotomies 5 | . . . . . . . . . . . . . . . . . . . . . . . 1 . . . . 4 Intel | -11 -10 -10 -10 -9 -8 -8 -8 -7 -7 -7 -7 -7 -7 -6 -6 -6 -6 -6 -6 -5 -5 -5 -5 -4 -4 -3 -2 -1 ------- Run | Yrd Mat Min Exi Min Mat Gar Mat Fac Gar Fac Low Low Dat Pro Fac Was Fac Ext Cet Fac Upp Upp War Pro Fac Res Res Acc Active Infowar (turns) 8304 | 22 1368 973 24 . . . . . . 1325 587 689 . . 1046 28 448 168 . 1197 4 11 4 24 2 145 26 213 Optics 589 | . . . . . . . . . . 589 . . . . . . . . . . . . . . . . . . Sensors 176 | . . . . . . . . . . . . . . . . . . . . 173 3 . . . . . . . Terrain 292 | . . . . . . . . . . . . . . . . . 292 . . . . . . . . . . . Traps 1 | . . . . . . . . . . . . . . . 1 . . . . . . . . . . . . . Seismic 3663 | 22 1368 973 24 . . . . . . . 587 689 . . . . . . . . . . . . . . . . T.N.C. 1023 | . . . . . . . . . . . . . . . . . . . . 1023 . . . . . . . . Cloaking 213 | . . . . . . . . . . . . . . . . . . . . . . . . . . . . 213 Jamming 3296 | . . . . . . . . . . 1325 . . . . 1046 28 179 168 . 337 1 11 4 24 2 145 26 . ECM 2 | . . . . . . . . . . . . . . . . . . . . . . . . . . 2 . . Robot Analysis Total 2 | . 2 . . . . . . . . . . . . . . . . . . . . . . . . . . . Derelict Logs Recovered 9 | . . 1 . 2 . . . . . . 1 1 . 2 . . . . . . . . . 2 . . . . Drone Launches . | . . . . . . . . . . . . . . . . . . . . . . . . . . . . . Drone Recoveries . | . . . . . . . . . . . . . . . . . . . . . . . . . . . . . Exploration | -11 -10 -10 -10 -9 -8 -8 -8 -7 -7 -7 -7 -7 -7 -6 -6 -6 -6 -6 -6 -5 -5 -5 -5 -4 -4 -3 -2 -1 ------------- Run | Yrd Mat Min Exi Min Mat Gar Mat Fac Gar Fac Low Low Dat Pro Fac Was Fac Ext Cet Fac Upp Upp War Pro Fac Res Res Acc Turns Passed 21640 | 102 1368 973 425 637 668 1227 1296 300 316 1789 587 690 69 847 1162 28 759 970 394 1772 580 349 735 243 233 717 1538 866 Spaces Moved 25419 | 52 701 578 298 418 394 614 854 636 435 3280 801 513 87 383 777 64 1450 1221 292 1672 1096 582 1195 473 600 1691 1972 2290 Core 20 | 7 . . . . . . . . 3 . . . . . . . 4 2 . 1 . . 1 . . . . 2 Treads 936 | 45 278 . . . . . 110 . . . . . . 271 232 . . . . . . . . . . . . . Legs 227 | . . . . . . . . . . . 29 43 . . . . . . 36 119 . . . . . . . . Wheels 3960 | . 423 578 298 418 394 393 629 . . . . . . . 289 . . . . 538 . . . . . . . . Hover 4878 | . . . . . . 221 115 . . 2925 772 470 87 112 . . . . . 176 . . . . . . . . Flight 15398 | . . . . . . . . 636 432 355 . . . . 256 64 1446 1219 256 838 1096 582 1194 473 600 1691 1972 2288 Fastest Speed 20 | 50 135 135 140 140 125 52 52 28 28 27 38 121 61 121 34 34 26 26 26 22 30 30 24 26 26 20 21 21 Average Speed 58 | 145 144 140 140 140 131 149 117 28 30 40 59 132 71 205 111 34 30 28 109 80 32 31 32 33 26 27 21 23 Slowest Speed 1050 | 160 160 175 140 140 160 292 320 29 400 110 260 260 121 240 360 34 450 350 190 515 35 33 150 36 29 110 96 1050 Overloaded Moves 11 | . . . . . . . . . . . . . . . . . . . . . . . 1 . . 10 . . Propulsion Burnouts . | . . . . . . . . . . . . . . . . . . . . . . . . . . . . . Robots Hopped 62 | . . . . . . . . 2 . . . . . . 4 . 7 9 . 7 . . . . 2 5 15 11 Potential Cave-ins 9 | . . . . . . . . . . . . . . . . . . 8 . . . . 1 . . . . . Cave-ins Triggered 1 | . . . . . . . . . . 1 . . . . . . . . . . . . . . . . . . Exploration Rate (%) 57 | 4 74 90 62 88 33 74 58 17 47 68 69 69 69 60 21 73 38 67 70 37 93 58 90 59 16 51 51 58 Regions Visited 28 Branch Regions 13 Pre-discovered Areas 6 | . 2 . 1 1 . . . . . . 1 . 1 . . . . . . . . . . . . . . . Known Exits Taken 9 | . . . 1 . 1 . . 1 . 1 . . . . . . 1 . . 1 1 1 . . 1 . . . Unknown Exits Taken 15 | 1 1 1 . 1 . . 1 . . . 1 1 1 1 . . . 1 1 . . . 1 1 . 1 1 . Scrap Searched 16 | . . 1 . . . . . . . . 1 4 . 1 . . . . . . 4 3 . 2 . . . . Spaces Dug 404 | . . 28 . . 12 2 29 6 27 35 11 . . . 19 . 22 10 . 1 48 17 . 17 13 33 21 53 Terrain Destroyed 1088 | . . 83 . 6 66 4 95 6 92 75 27 . . 1 19 . 24 49 2 19 116 162 28 48 13 37 39 77 Melee 205 | . . . . . . 2 6 6 15 35 11 . . . 19 . 11 . . . 7 5 . . 7 30 21 30 Projectile 139 | . . . . . . 2 18 . . . . . . 1 . . 13 21 2 19 19 12 5 7 6 7 4 3 AOE 743 | . . 83 . 6 66 . 71 . 77 40 16 . . . . . . 28 . . 90 145 23 41 . . 14 43 Terrain Rammed 1 | . . . . . . . . . . . . . . . . . . . . . . . . . . . . 1 Walls Destroyed 1 | . . . . . . . . . . . . . . . . . . . . . . . . . . . . 1 Machines Disabled . | . . . . . . . . . . . . . . . . . . . . . . . . . . . . . Actions | -11 -10 -10 -10 -9 -8 -8 -8 -7 -7 -7 -7 -7 -7 -6 -6 -6 -6 -6 -6 -5 -5 -5 -5 -4 -4 -3 -2 -1 --------- Run | Yrd Mat Min Exi Min Mat Gar Mat Fac Gar Fac Low Low Dat Pro Fac Was Fac Ext Cet Fac Upp Upp War Pro Fac Res Res Acc Total 30131 | 67 892 678 308 469 496 791 1022 707 556 3587 859 520 94 417 927 68 1688 1745 350 1995 1267 699 1453 529 653 1854 2953 2487 Wait 2189 | . 53 27 . 36 4 27 22 8 43 111 12 1 . 4 35 1 66 242 24 160 113 74 154 14 19 26 871 42 Move 25276 | 52 700 577 297 417 394 613 853 631 434 3279 800 512 86 382 770 63 1435 1202 291 1657 1095 581 1194 472 595 1680 1947 2267 Hop 54 | . . . . . . . . 2 . . . . . . 3 . 7 9 . 6 . . . . 2 5 9 11 Pick Up 205 | 4 27 7 5 4 17 12 28 5 2 17 1 2 . 3 6 . 5 2 4 4 2 . 4 2 5 18 13 6 Fast Attach 229 | 7 2 1 . . 6 8 6 8 . 24 1 1 4 2 7 3 27 15 8 36 5 2 17 . 4 12 11 12 Attach 107 | . 1 . . 1 5 5 4 6 2 4 3 1 . 2 4 . 9 5 1 9 5 1 3 1 4 5 6 20 Detach 58 | . . . . 1 . 3 . . . 1 3 . . . 1 . 7 4 . 5 3 2 1 2 4 2 6 13 Swap 238 | . 12 16 1 3 16 24 14 5 8 15 6 . . 3 3 . 15 5 1 12 12 10 13 5 4 24 5 6 Drop 343 | . 12 7 5 4 23 20 24 16 1 33 2 1 4 2 13 1 25 8 10 42 3 . 22 3 3 28 23 8 Fire 706 | 4 83 43 . 3 31 40 50 . 19 52 18 . . 10 39 . 31 51 10 40 22 24 45 13 4 9 32 33 Melee 358 | . . . . . . 25 21 26 18 51 12 2 . 6 46 . 16 . 1 . 7 5 . . 9 45 30 38 Ram 1 | . . . . . . . . . . . . . . . . . . . . . . . . . . . . 1 Kick . | . . . . . . . . . . . . . . . . . . . . . . . . . . . . . Crush 2 | . 2 . . . . . . . . . . . . . . . . . . . . . . . . . . . Escape Stasis 136 | . . . . . . 8 . . 29 . . . . . . . 45 . . 24 . . . . . . . 30 Rewire 222 | . . . . . . . . . . . . . . 3 . . . 202 . . . . . 17 . . . . Trap 7 | . . . . . . 6 . . . . 1 . . . . . . . . . . . . . . . . . Miscellaneous . | . . . . . . . . . . . . . . . . . . . . . . . . . . . . . Route ------- -11/Scrapyard -10/Materials (discovered 2 exits: [*Mat] / *Min) -10/Mines (discovered 3 exits: [*Mat x2] / *Exi) -10/Exiles (discovered 2 exits: *Min x2) -9/Mines (discovered 2 exits: *Mat x2) -8/Materials (discovered 2 exits: *Fac / Gar) -8/Garrison (discovered 2 exits: *Mat x2) -8/Materials (discovered 3 exits: *Fac x3) -7/Factory (discovered 3 exits: *Fac / *Low / Gar) -7/Garrison (discovered 2 exits: *Fac x2) -7/Factory (discovered 5 exits: *Fac x3 / *Low x2) -7/Lower Caves -7/Lower Caves (discovered 2 exits: *Fac / *Dat) -7/Data Miner -6/Proximity Caves -6/Factory (discovered 2 exits: *Low x2) -6/Waste -6/Factory (discovered 5 exits: *Fac / *Low x2 / *Ext x2) -6/Extension (discovered 2 exits: *Fac / *Cet) -6/Cetus (discovered 2 exits: *Fac / [*Arc]) -5/Factory (discovered 2 exits: *Upp x2) -5/Upper Caves -5/Upper Caves (discovered 2 exits: *Fac / *War) -5/Warlord -4/Proximity Caves -4/Factory -3/Research (discovered 4 exits: *Res / Arm / Qua x2) -2/Research (discovered 3 exits: *Acc x2 / *Tes) -1/Access To Epsilon Eridani History --------- Turn | Location | Event 11 | -11/Scrapyard | Discovered new exit (range 15) 103 | -11/Scrapyard | Entered Materials 301 | -10/Materials | Build established: Mutant 782 | -10/Materials | Discovered new exit (range 16) 931 | -10/Materials | Discovered new exit (range 16) 1471 | -10/Materials | Entered Mines 1569 | -10/Mines | Received a Mining Laser from a helpful Derelict 1684 | -10/Mines | Excavation squad dispatched 1684 | -10/Mines | A large section of the Mines collapsed 1933 | -10/Mines | Discovered new exit (range 13) 2095 | -10/Mines | Deemed a non-threat by the Exiles lab entrance 2237 | -10/Mines | Build established: Scavenger-Mutant 2295 | -10/Mines | Discovered new exit (range 14) 2390 | -10/Mines | Received a Rocket Launcher from a helpful Derelict 2436 | -10/Mines | Discovered new exit (range 8) 2444 | -10/Mines | Entered Exiles 2445 | -10/Exiles | Identified exit to Mines 2502 | -10/Exiles | Met 8R-AWN 2522 | -10/Exiles | Met EX-HEX 2579 | -10/Exiles | Met EX-DEC 2589 | -10/Exiles | Learned location of Zion (-6) 2617 | -10/Exiles | Met EX-BIN 2637 | -10/Exiles | Aligned with FarCom system 2638 | -10/Exiles | Given EX-Vault access code 2672 | -10/Exiles | Opened EX-Vault 2683 | -10/Exiles | Found Field Lobotomy Kit 2712 | -10/Exiles | Warned to stay clear of 0b10 Research branches 2780 | -10/Exiles | Build established: Mutant 2869 | -10/Exiles | Left Exiles lab with Field Lobotomy Kit 2869 | -10/Exiles | Entered Mines 2890 | -9/Mines | Met a Derelict who couldn't figure out how to use a Trap Extractor 3023 | -9/Mines | Learned Materials emergency access door positions 3180 | -9/Mines | Learned location of Recycling (-9) 3203 | -9/Mines | Found a hidden stash of uninstalled traps 3328 | -9/Mines | Discovered new exit (range 8) 3464 | -9/Mines | Discovered new exit (range 10) 3506 | -9/Mines | Entered Materials 3506 | -8/Materials | Evolved 4 slots: Propulsion x1, Utility x2, Weapon x1 3737 | -8/Materials | Central database locked down 4078 | -8/Materials | Discovered new exit (range 8) 4174 | -8/Materials | Identified exit to Garrison 4174 | -8/Materials | Entered Garrison 4176 | -8/Garrison | Triggered checkpoint 4248 | -8/Garrison | Triggered checkpoint 4326 | -8/Garrison | Garrison Relay disabled 4428 | -8/Garrison | Triggered checkpoint 4675 | -8/Garrison | Spotted B-75 Beast 4713 | -8/Garrison | Destroyed B-75 Beast 4836 | -8/Garrison | Discovered new exit (range 4) 4886 | -8/Garrison | Triggered checkpoint 4890 | -8/Garrison | Garrison Relay disabled 5189 | -8/Garrison | Triggered checkpoint 5222 | -8/Garrison | Triggered checkpoint 5245 | -8/Garrison | Lost 3 parts (3n) 5330 | -8/Garrison | Discovered new exit (range 5) 5354 | -8/Garrison | Garrison Relay disabled 5401 | -8/Garrison | Entered Materials 5796 | -8/Materials | Core integrity fell below 50% 5997 | -8/Materials | Discovered new exit (range 5) 5998 | -8/Materials | Build established: Scavenger-Mutant 6238 | -8/Materials | Discovered new exit (range 16) 6447 | -8/Materials | Build established: Mutant 6506 | -8/Materials | Discovered new exit (range 8) 6601 | -8/Materials | First assault squad dispatched 6685 | -8/Materials | Destroyed 7 combat bots 6697 | -8/Materials | Entered Factory 6697 | -7/Factory | Evolved 2 slots: Propulsion x1, Weapon x1 6745 | -7/Factory | Discovered new exit (range 11) 6779 | -7/Factory | Repaired Hvy. Assault Rifle+ 6974 | -7/Factory | Discovered new exit (range 10) 6997 | -7/Factory | Identified exit to Garrison 6997 | -7/Factory | Entered Garrison 7013 | -7/Garrison | Triggered checkpoint 7018 | -7/Garrison | Garrison Relay disabled 7112 | -7/Garrison | Triggered checkpoint 7149 | -7/Garrison | Triggered checkpoint 7158 | -7/Garrison | Lost 3 parts (1u2w) 7179 | -7/Garrison | Destroyed 13 combat bots 7180 | -7/Garrison | Discovered new exit (range 9) 7187 | -7/Garrison | Triggered checkpoint 7205 | -7/Garrison | Garrison Relay disabled 7261 | -7/Garrison | Triggered checkpoint 7274 | -7/Garrison | Discovered new exit (range 8) 7313 | -7/Garrison | Entered Factory 7324 | -7/Factory | Discovered new exit (range 18) 7324 | -7/Factory | Identified exit to Lower Caves 7775 | -7/Factory | Discovered new exit (range 5) 7788 | -7/Factory | Discovered new exit (range 19) 7843 | -7/Factory | Build established: Skirmisher 7948 | -7/Factory | Garrison activated, responded to threat 8151 | -7/Factory | Crushed by falling debris 8151 | -7/Factory | System corruption reached 10% 8182 | -7/Factory | Lost 3 parts (3u) 8748 | -7/Factory | Garrison activated, responded to threat 9102 | -7/Factory | Entered Lower Caves 9108 | -7/Lower Caves | Met a Warlord Commander 9109 | -7/Lower Caves | Learned location of Warlord (-5) 9110 | -7/Lower Caves | Warlord Commander delivered Encrypted Comm Array 9177 | -7/Lower Caves | Learned Factory trap positions 9456 | -7/Lower Caves | Build established: Mutant 9673 | -7/Lower Caves | Discovered new exit (range 7) 9689 | -7/Lower Caves | Entered another Lower Caves area 9701 | -7/Lower Caves | Encountered a Warlord checkpoint 9734 | -7/Lower Caves | Learned Factory terminal intel 9769 | -7/Lower Caves | Build established: Gunner 9858 | -7/Lower Caves | Discovered new exit (range 5) 10145 | -7/Lower Caves | Acquired the password to a Derelict Tinkerer's latest research 10304 | -7/Lower Caves | Discovered new exit (range 13) 10379 | -7/Lower Caves | Caught by Unaware searching for contraband prototypes 10379 | -7/Lower Caves | Entered Data Miner 10379 | -7/Data Miner | Discovered new exit (range 6) 10397 | -7/Data Miner | Met Data Miner 10410 | -7/Data Miner | Acquired the access code to Warlord's prototype stash 10410 | -7/Data Miner | Learned location of Section 7 (-3) 10419 | -7/Data Miner | Received God Mode back door access code from Data Miner 10448 | -7/Data Miner | Entered Proximity Caves 10676 | -6/Proximity Caves | Learned Factory terminal intel 10739 | -6/Proximity Caves | Build established: Tank 10924 | -6/Proximity Caves | Discovered new exit (range 15) 11163 | -6/Proximity Caves | Found Prototype Launcher 11163 | -6/Proximity Caves | Identified Mni. Smartbomb Launcher 11295 | -6/Proximity Caves | Entered Factory 11295 | -6/Factory | Evolved 2 slots: Propulsion x1, Utility x1 11296 | -6/Factory | Identified exit to Lower Caves 11297 | -6/Factory | Loaded intel: 74 trap records 11298 | -6/Factory | Loaded intel: 28 terminal locations 11490 | -6/Factory | Garrison activated, responded to threat 11593 | -6/Factory | Build established: Skirmisher 11918 | -6/Factory | Build established: Scavenger-Skirmisher 11924 | -6/Factory | Discovered exit to Lower Caves (range 9) 12109 | -6/Factory | Cargo convoy interrupted 12146 | -6/Factory | Lost 3 parts (1p2n) 12457 | -6/Factory | Manually triggered Chute Trap 12457 | -6/Factory | Sucked down chute 12457 | -6/Factory | Entered Waste 12466 | -6/Waste | Spotted C-40 Crusher 12467 | -6/Waste | Spotted C-40 Crusher 12468 | -6/Waste | Spotted C-40 Crusher 12472 | -6/Waste | EMP discharged 12472 | -6/Waste | System corruption reached 10% 12476 | -6/Waste | Spotted C-40 Crusher 12476 | -6/Waste | Spotted C-40 Crusher 12476 | -6/Waste | Spotted C-40 Crusher 12477 | -6/Waste | Discovered new exit (range 16) 12483 | -6/Waste | Crushed by Compactor (1 part destroyed, 2 dropped) 12485 | -6/Waste | Entered Factory 12486 | -6/Factory | Loaded intel: 27 terminal locations 12605 | -6/Factory | Build established: Mutant 12652 | -6/Factory | Identified exit to Extension 12668 | -6/Factory | Discovered new exit (range 15) 13117 | -6/Factory | Watched by a mysterious "MATRIX" hacker. 13143 | -6/Factory | Fabricated Biomechanical Wings? 13244 | -6/Factory | Entered Extension 13297 | -6/Extension | Rescued a captive Derelict 13298 | -6/Extension | Rescued a captive Derelict 13346 | -6/Extension | Rescued A7 13476 | -6/Extension | Energy Cycler disabled 13476 | -6/Extension | Rescued a captive Derelict 13481 | -6/Extension | Rescued a captive Derelict 13485 | -6/Extension | Rescued a captive Derelict 13664 | -6/Extension | Lost 7 allies 14138 | -6/Extension | Discovered new exit (range 10) 14138 | -6/Extension | Discovered new exit (range 6) 14214 | -6/Extension | Entered Cetus 14214 | -6/Cetus | Accompanied by 14 allies (A7) 14219 | -6/Cetus | Acquired a Cetus Manufacturing Module code from A7 14219 | -6/Cetus | Spotted Cetus Guard 14219 | -6/Cetus | Spotted Cetus Guard 14230 | -6/Cetus | Spotted Cetus Guard 14233 | -6/Cetus | Spotted Cetus Guard 14241 | -6/Cetus | Allies destroyed Cetus Guard 14254 | -6/Cetus | Allies destroyed Cetus Guard 14262 | -6/Cetus | Allies destroyed Cetus Guard 14268 | -6/Cetus | Allies destroyed Cetus Guard 14288 | -6/Cetus | Lost 4 parts (2n2w) 14297 | -6/Cetus | Lost 7 allies 14357 | -6/Cetus | Started Cetus Manufacturing Module 14382 | -6/Cetus | Manufactured an Enhanced Grunt 14401 | -6/Cetus | System corruption reached 30% 14407 | -6/Cetus | Manufactured an Enhanced Grunt 14432 | -6/Cetus | Manufactured an Enhanced Grunt 14457 | -6/Cetus | Manufactured an Enhanced Grunt 14472 | -6/Cetus | Escorted A7 to Cetus Mainframe 14482 | -6/Cetus | Manufactured an Enhanced Grunt 14500 | -6/Cetus | Discovered new exit (range 16) 14525 | -6/Cetus | Spotted Cetus Guard 14525 | -6/Cetus | Spotted Cetus Guard 14536 | -6/Cetus | Spotted Cetus Guard 14536 | -6/Cetus | Spotted Cetus Guard 14548 | -6/Cetus | Allies destroyed Cetus Guard 14555 | -6/Cetus | Allies destroyed Cetus Guard 14561 | -6/Cetus | Discovered new exit (range 16) 14571 | -6/Cetus | Met Revision 17 14608 | -6/Cetus | Entered Factory 14608 | -5/Factory | Accompanied by 8 allies (A7) 14608 | -5/Factory | Evolved 2 slots: Propulsion x1, Utility x1 14613 | -5/Factory | Received a hacking code to weaken MAIN.C 15148 | -5/Factory | Build established: Commander-Skirmisher 15513 | -5/Factory | Build established: Scavenger-Skirmisher 15862 | -5/Factory | Fabricated Gravity Neutralizer? 16010 | -5/Factory | Identified exit to Upper Caves 16380 | -5/Factory | Entered Upper Caves 16380 | -5/Upper Caves | Accompanied by 2 allies 16380 | -5/Upper Caves | Spotted B-75 Beast 16400 | -5/Upper Caves | Allies destroyed B-75 Beast 16795 | -5/Upper Caves | Attracted the attention of an 0b10 outpost 16819 | -5/Upper Caves | Build established: Scavenger-Sprinter 16946 | -5/Upper Caves | Discovered new exit (range 8) 16948 | -5/Upper Caves | Identified exit to Upper Caves 16960 | -5/Upper Caves | Entered another Upper Caves area 16961 | -5/Upper Caves | Discovered new exit (range 13) 17017 | -5/Upper Caves | Encountered a Warlord checkpoint 17134 | -5/Upper Caves | Discovered new exit (range 13) 17204 | -5/Upper Caves | Attracted the attention of an 0b10 base 17306 | -5/Upper Caves | Learned Factory trap positions 17306 | -5/Upper Caves | Learned Research stockpile data 17306 | -5/Upper Caves | Learned Armory stockpile data 17309 | -5/Upper Caves | Identified exit to Warlord 17309 | -5/Upper Caves | Entered Warlord 17351 | -5/Warlord | Opened Warlord's prototype stash 17383 | -5/Warlord | Found Prototype Processor 17383 | -5/Warlord | Identified Exp. Armor Integrity Analyzer 17539 | -5/Warlord | Warlord's base attacked by MAIN.C 17582 | -5/Warlord | Met Warlord 17611 | -5/Warlord | Found Prototype Energy Gun 17611 | -5/Warlord | Identified Vortex Shotgun 17615 | -5/Warlord | Found Prototype Energy Gun 17615 | -5/Warlord | Identified Vortex Rifle 17740 | -5/Warlord | Lost 4 allies 17762 | -5/Warlord | Spotted B-75 Beast 17792 | -5/Warlord | Spotted B-86 Titan 17889 | -5/Warlord | Warlord forces counterattacked 17893 | -5/Warlord | Spotted Striker 17946 | -5/Warlord | Spotted Executioner 17952 | -5/Warlord | Spotted Striker 17967 | -5/Warlord | Destroyed Striker 17972 | -5/Warlord | Spotted Executioner 17980 | -5/Warlord | Spotted Executioner 17983 | -5/Warlord | Assimilated Executioner with FLK Orb 17992 | -5/Warlord | Found Prototype Processor 17992 | -5/Warlord | Identified Exp. Core Analyzer 17999 | -5/Warlord | Found Prototype Processor 17999 | -5/Warlord | Identified Exp. Targeting Computer 18015 | -5/Warlord | Lost 9 allies 18017 | -5/Warlord | Discovered new exit (range 8) 18044 | -5/Warlord | Entered Proximity Caves 18044 | -4/Proximity Caves | Accompanied by 1 ally 18108 | -4/Proximity Caves | Learned Research stockpile data 18109 | -4/Proximity Caves | Learned Research terminal intel 18146 | -4/Proximity Caves | Attracted the attention of an 0b10 outpost 18257 | -4/Proximity Caves | Lost 3 allies 18258 | -4/Proximity Caves | Found Exp. Core Analyzer 18285 | -4/Proximity Caves | Discovered new exit (range 6) 18287 | -4/Proximity Caves | Entered Factory 18287 | -4/Factory | Evolved 2 slots: Power x1, Utility x1 18288 | -4/Factory | Loaded intel: 68 trap records 18304 | -4/Factory | Central database locked down 18462 | -4/Factory | Discovered new exit (range 6) 18467 | -4/Factory | Identified exit to Research 18520 | -4/Factory | Entered Research 18520 | -3/Research | Evolved 2 slots: Propulsion x1, Weapon x1 18522 | -3/Research | Loaded intel: 23 terminal locations 18627 | -3/Research | Found Prototype Hackware 18638 | -3/Research | Identified Exp. Hacking Suite 18646 | -3/Research | Spotted B-86 Titan 18671 | -3/Research | Spotted B-90 Cyclops 18720 | -3/Research | Revision forces began assault on 0b10 18889 | -3/Research | Identified exit to Armory 18889 | -3/Research | Identified exit to Quarantine 18924 | -3/Research | Spotted B-86 Titan 19196 | -3/Research | Discovered new exit (range 13) 19220 | -3/Research | Research terminal network offline 19237 | -3/Research | Entered another Research area 19237 | -2/Research | Warlord forces began assault on 0b10 19237 | -2/Research | Evolved 2 slots: Propulsion x1, Utility x1 19252 | -2/Research | Found Prototype Launcher 19252 | -2/Research | Identified Hellfire Missile Launcher 19255 | -2/Research | Found Hellfire Missile Launcher 19262 | -2/Research | Distinguished unit "Gunslingers" dispatched to help 19347 | -2/Research | Research machine network offline 19479 | -2/Research | Borebot progress halted 19481 | -2/Research | Discovered new exit (range 7) 19482 | -2/Research | Identified exit to Testing 19564 | -2/Research | Spotted B-90 Cyclops 19587 | -2/Research | Found Prototype Hackware 19587 | -2/Research | Identified Exp. System Shield 19657 | -2/Research | Found Exp. Core Analyzer 19692 | -2/Research | Borebot progress halted 19705 | -2/Research | Discovered new exit (range 11) 19724 | -2/Research | Spotted Striker 19853 | -2/Research | Discovered new exit (range 14) 20375 | -2/Research | Borebot progress halted 20751 | -2/Research | Given Cave Seal Controls access code 20775 | -2/Research | Entered Access 20775 | -1/Access | Evolved 2 slots: Utility x2 20891 | -1/Access | Garrison activated, responded to threat 21166 | -1/Access | Spotted B-99 Colossus 21169 | -1/Access | Assimilated B-99 Colossus with FLK Orb 21192 | -1/Access | Adv. Hacking Suite fried by hacking feedback 21219 | -1/Access | Assimilated H-81 Overseer with FLK Orb 21270 | -1/Access | Energy Cycler disabled 21381 | -1/Access | Build established: Hacker-Sprinter 21481 | -1/Access | Spotted B-99 Colossus 21513 | -1/Access | Lost 4 parts (1p1n2u) 21559 | -1/Access | Assimilated C-30 ARC with FLK Orb 21583 | -1/Access | Assimilated C-57 Dissector with FLK Orb 21640 | -1/Access | Discovered new exit (range 6) 21641 | *** | Escaped! Last Messages --------------- 21580_ Lgt. Particle Reactor destroyed. 21580_ Knocked back. 21580_ K-01 Serf destroyed. 21580_ O-24 Administrator: "IFF HANDSHAKE FAILED. SECURING TERMINAL." 21581_ Spectral Interrupter explodes. 21583_ Field Lobotomy Kit expended. 21583_ C-57 Dissector assimilated. 21586_ System corrupted: Matter fused (-9). 21586_ ALERT: Hostiles spotted, dispatching reinforcements to Terminal A017. 21588_ Dissector 10a Adv. Surge Thruster severed. 21588_ C-57 Dissector destroyed. 21592_ K-01 Serf cleans the Longscan Aggregator. 21606_ AL Z5 Y36MSYTHT 0P740N 21625_ Connecting with Garrison Access... 21629_ System corrupted: Energy discharge (-60). 21640_ The Access Shell folds into the floor. 21640_ EXIT=FOUND Map ----- +----------------------------------------------------+ | ???????????# #??????# # #????????? | | ??????????## #??????# [ # #????????? | | ??#########" #??????# # #????????? | | ??# # #??????# # #????????? | | ??# # #??????# # #????????? | | ??# =# #??????# !!! # #????????? | | ??# # #??????# !!! # #????????? | | ??# """ + #??????# !! + #????????? | | ??# " # #??????# ! # #????????? | | ??# """ # #??????################# #????????? | | ??# # ######################## ########## | | ??# # | | ??########## | | ?????##########+##### ""#####+############# | | ?????# ! #?# ""#?? ??????????? | | ?????#] #?# ""#?# ????????? | | ?????# " ### T#?# ??????? | | ?????# """" "## ""#?# ????? | | ?????# """"" ### ""#?# +??? | | ?????# """"" ### ""### #??? | | ?????# """" ## ## #??? | | ?????# " ### ### #??? | | ?????# #?# #?# """"""" #??? | | ?????# #?# #?# """"""" #??? | | ?????# """ """ #?# #?# ???? #??? | | ?????# """ """ #?# @" #?# ???????? ???? | | ?????##############?# "" #?####????????????? | | ????????????????????# #?????????????????? | | ????????????????????# #?????????????????? | | ????????????????????# #?????????????????? | | ????????????????????#""""""""""#?????????????????? | | ?????????????????????????????????????????????????? | | ?????????????????????????????????????????????????? | | ?????????????????????????????????????????????????? | | ?????????????????????????????????????????????????? | | ??????????????????????BB????BB???????????????????? | | ??????????????????????BB????BB???????????????????? | | ???????????????????????? ????????????????????? | | ??????????????????????? ????????????????????? | | ??????????????????????? ????????????????????? | | ??????????????????????? ????????????????????? | | ???????????????????????# #??########??????????? | | ???????????????????????# # #??????????? | | ???????????????????????# # #??????????? | | ???????????????????????+ + " #??????????? | | ???????????????????????# # """ #??????????? | | ???????????????????????# # """ #??????????? | | ???????????????????????# # " #??????????? | | ???????????????????????# # #??????????? | | ???????????????????????# # ####???????? | +----------------------------------------------------+ Best States ------------- Heat Dissipation 71 Coolant Potential 80 Energy Generation 43 Energy Capacity 500 Matter Stores 300 Matter Capacity 300 Sight Range 20 Robot Scan Range 15 Terrain Scan Range 20 Terrain Scan Density 110 Jamming Range 16 Cloak Strength 3 Additional Mass Support 12 Armor Coverage 450 Resistance: KI 30 Core Shielding 20 Propulsion Shielding 66 Utility Shielding 66 Weapon Cycling 15 Phase Shifting 15 Evasion (%) 80 Targeting Accuracy 18 Melee Accuracy 6 Target Analysis 5 Core Analysis 8 Armor Integrity Analysis 50 Recoil Reduction 6 Offensive Hacking 30 Defensive Hacking 28 Authchip Count 2 Trap Extractor Capacity 6 Item Schematics ----------------- VTOL Module | -7/Factory | Hacked Biomechanical Wings | -7/Data Miner | Free Lgt. Regenerative Plating | -7/Data Miner | Free Combat Drone Bay | -7/Data Miner | Free Gravity Neutralizer | -7/Data Miner | Free Imp. Lightning Gun | -7/Data Miner | Free Imp. Kinecellerator | -7/Data Miner | Free Hvy. Phase Cannon | -7/Data Miner | Free Nuclear Pulse Array | -7/Data Miner | Free Imp. Plasma Cutter | -7/Data Miner | Free Robot Schematics ------------------ W-25 Informer | -7/Data Miner | Free G-50 Soldier | -7/Data Miner | Free R-10 Processor | -7/Data Miner | Free L-41 Fighter | -7/Data Miner | Free A-15 Conveyor | -7/Data Miner | Free S-27 Virus | -7/Data Miner | Free Fabricated ------------ Biomechanical Wings | x1 | -6/Factory | Authchip Gravity Neutralizer | x1 | -5/Factory | Authchip Repaired ---------- Hvy. Assault Rifle | 36% | -7/Factory Studied --------- Lgt. Assault Rifle | -8/Materials | Hacked Airjet | -8/Materials | Hacked Rocket Launcher | -8/Materials | Hacked Minigun | -8/Materials | Hacked Hvy. Assault Rifle | -8/Materials | Hacked Cesium-ion Thruster | -7/Factory | Hacked Flak Gun | -7/Factory | Hacked Missile Launcher | -7/Factory | Hacked Lgt. Nuclear Core | -7/Factory | Hacked VTOL Module | -5/Factory | Hacked Lrn. Missile Launcher | -5/Factory | Hacked Field Propulsion Array | -4/Factory | Hacked Q-thruster | -2/Research | Hacked Impulse Thruster Array | -2/Research | Hacked Railgun | -2/Research | Hacked Hyp. Railgun | -2/Research | Hacked Alien Tech Used ----------------- None Achievements -------------- Explosive Keycard Insider Info Tune-up Challenges ------------ None Game ------ Seed DimensionalSingularityHammer Manual? 0 Play Time 04:46:09 Cumulative 130.3 hours Start 2026.03.08 @ 19:11:50 End 2026.03.10 @ 16:20:45 Sessions 26 Manual Loads 0 Difficulty Rogue Special Mode None Game No. 144 Rogue 69 Adventurer 75 Explorer 0 Win Type 0 Total 5 Types 5/0/0/0/0/0/0/0/0/0 Lore% 58 Gallery% 57 Achievement% 47 Wizard Run 0 Options --------- Layout 2 ASCII 0 Keyboard 0 Movement Numpad Keybinds 0 Fullscreen 2 Font 24/Smallcaps Map View 50x44 Zoom Use 0% Tactical HUD 1 Map Filters NONE Filters NONE Steam 1 RUN: ec0bcd64-5b30-4870-9d5c-c37548c8d9c7